Cogmind - Beta 13 @@@ ROGUE MODE // 2024.07.13 @ 19:50:32 Player: weedlord420 Result: Self-destructed Performance ------------- Evolutions (2) 1000 Regions Visited (4) 800 Robots Destroyed (20) 100 Value Destroyed (472) 472 Prototype IDs (2) 40 Alien Tech Used (0) 0 Bonus (0) 0 TOTAL SCORE: 2412 Bonus ------- None Cogmind --------- Core Integrity 550/550 Matter 300/300 Energy 170/170 System Corruption 0% Temperature Cool (0) Movement Treading (240) Ox1 Location -8/Materials Parts ------- > --- POWER (1) -------- Makeshift Power Source > --- PROPULSION (2) --- Light Treads > --- UTILITY (6) ------ Medium Storage Unit Hardened Light Armor Plating > --- WEAPON (2) ------- Subdweller Machine Gun Bore Cannon > --- INVENTORY (10) --- Light Angular Momentum Engine Wheel Heat Sink Core Shielding Hardened Light Armor Plating Hardened Light Armor Plating Improved Medium Laser Improved Medium Laser Grenade Launcher Peak State ------------ > --- POWER ------------ Makeshift Power Source > --- PROPULSION ------- Light Treads > --- UTILITY ---------- Medium Storage Unit Hardened Light Armor Plating > --- WEAPON ----------- Improved Medium Laser Bore Cannon > --- INVENTORY -------- Light Angular Momentum Engine Core Shielding Hardened Light Armor Plating Hardened Light Armor Plating Improved Medium Laser Improved Medium Laser Grenade Launcher [Rating: 17] Favorites ----------- Power Makeshift Power Source Engine Makeshift Power Source Propulsion Light Treads Treads Light Treads Utility Medium Storage Unit Device Sensor Array Storage Medium Storage Unit Protection Hardened Light Armor Plating Weapon Improved Medium Laser Energy Gun Improved Medium Laser Ballistic Gun Assault Rifle Ballistic Cannon Bore Cannon Launcher Grenade Launcher Build | -11 -10 -10 -10 -8 ------- Run | Yrd Mat Min Sub Mat Slots Evolved 4 | . . . . 4 Power . | . . . . . Propulsion . | . . . . . Utility 4 | . . . . 4 Weapon . | . . . . . Parts Attached 29 | 2 20 6 1 . Power 5 | . 4 1 . . Engine 5 | . 4 1 . . Core . | . . . . . Reactor . | . . . . . Propulsion 5 | . 5 . . . Treads 5 | . 5 . . . Leg . | . . . . . Wheel . | . . . . . Hover . | . . . . . Flight . | . . . . . Utility 5 | . 4 1 . . Device 1 | . 1 . . . Storage 2 | . 2 . . . Processor . | . . . . . Hackware . | . . . . . Protection 2 | . 1 1 . . Artifact . | . . . . . Weapon 14 | 2 7 4 1 . Energy Gun 6 | . 4 2 . . Energy Cannon . | . . . . . Ballistic Gun 4 | 2 1 . 1 . Ballistic Cannon 1 | . . 1 . . Launcher 3 | . 2 1 . . Special Weapon . | . . . . . Impact Weapon . | . . . . . Slashing Weapon . | . . . . . Piercing Weapon . | . . . . . Special Melee Weapon . | . . . . . Unidentified Prototypes 1 | . 1 . . . Parts Lost 5 | . 1 4 . . Power 2 | . 1 1 . . Propulsion 1 | . . 1 . . Utility 1 | . . 1 . . Weapon 1 | . . 1 . . Highest Loss Streak 4 | . 1 4 . . To Critical Strikes . | . . . . . Average Slot Usage (%) 86 | . 97 79 76 . Engine 13 | . 13 13 14 . Treads 20 | . 27 15 14 . Device 2 | . 4 . . . Storage 13 | . 13 14 14 . Protection 11 | . 8 14 14 . Energy Gun 10 | . 15 8 . . Ballistic Gun 5 | . 11 . 5 . Ballistic Cannon 7 | . . 12 14 . Naked Turns . | . . . . . Heaviest Build 32 | 3 26 31 32 . Greatest Support 40 | 3 40 40 20 . Greatest Overweight (x) 1 | . . 1 1 . Average Overweight (x) . | . . . 1 . Largest Inventory Capacity 10 | 5 10 10 10 . Average Capacity 9 | 5 9 10 10 . Most Carried 10 | 5 10 10 10 . Average Carried 7 | 3 6 8 9 . Final Capacity 10 | 5 10 10 10 10 Final Carried 10 | 5 10 9 9 9 Class Distribution -------------------- 100% | Mutant Dominant Class ---------------- Mutant | -10/Materials Mutant | -10/Mines Mutant | -10/Subcaves Mutant | -8/Materials Resources | -11 -10 -10 -10 -8 ----------- Run | Yrd Mat Min Sub Mat Matter Collected 709 | 220 193 286 10 . Remotely . | . . . . . Salvage Created 540 | . 369 171 . . Parts 32 | . 26 6 . . Haulers Intercepted 1 | . 1 . . . Recyclers Shooed . | . . . . . Parts Field Recycled . | . . . . . Retrieved Matter . | . . . . . Parts Self-Destructed 8 | . . . 8 . Prevented . | . . . . . Kills | -11 -10 -10 -10 -8 ------- Run | Yrd Mat Min Sub Mat Combat Hostiles Destroyed 25 | . 10 15 . . Guns 11 | . 9 2 . . Cannons 3 | . . 3 . . AOE 11 | . 1 10 . . Classes Destroyed 9 | . 6 3 . . Worker 1 | . 1 . . . Builder 1 | . . 1 . . Hauler 1 | . 1 . . . Operator 1 | . 1 . . . Watcher 2 | . 2 . . . Swarmer 6 | . 6 . . . Grunt 6 | . 4 2 . . Demolisher 2 | . . 2 . . Assembled 11 | . . 11 . . Best Kill Streak 11 | . 6 11 . . Combat Bots Only 11 | . 6 11 . . Max Kills in Single Turn 4 | . 1 4 . . Gunslinging . | . . . . . Exploded 4 | . 1 4 . . Melee . | . . . . . Uniques/NPCs Destroyed . | . . . . . Combat | -11 -10 -10 -10 -8 -------- Run | Yrd Mat Min Sub Mat Hostile Shots Fired 75 | . 32 43 . . Missed 10 | . 4 6 . . Damage Taken 1399 | . 402 997 . . Core 221 | . 100 121 . . Absorbed by Shields . | . . . . . Regen/Repaired (Parts) 146 | . 146 . . . Core Remaining (%) 55 | 100 . . 11 . Volleys Fired 51 | . 29 22 . . Largest 2 | . 2 2 . . Hottest 113 | . 112 113 . . Shots Fired 97 | . 58 39 . . Gun 76 | . 54 22 . . Cannon 13 | . . 13 . . Launcher 8 | . 4 4 . . Special . | . . . . . Kinetic 47 | . 34 13 . . Thermal 42 | . 20 22 . . Explosive 8 | . 4 4 . . Electromagnetic . | . . . . . Robot Hit Streak 6 | . 6 4 . . Robot Miss Streak 3 | . 2 3 . . Penetration Max 1 | . . 1 . . Secondary Targets 3 | . 3 . . . Max Gunslinging Chain 1 | . 1 . . . Shots Hit Robots 53 | . 31 22 . . Core Hits 41 | . 19 22 . . Critical Kills 2 | . . 2 . . Critical Parts Destroyed 1 | . . 1 . . Critical Strikes 5 | . 1 4 . . Burn 2 | . 1 1 . . Destroy 3 | . . 3 . . Melee Attacks . | . . . . . Impact . | . . . . . Slashing . | . . . . . Piercing . | . . . . . Sneak Attacks . | . . . . . Combat Hostiles . | . . . . . Follow-up Attacks . | . . . . . Damage Inflicted 1266 | . 499 767 . . Guns 622 | . 369 253 . . Cannons 120 | . . 120 . . Explosions 524 | . 130 394 . . Melee . | . . . . . Ramming . | . . . . . Kinetic 356 | . 236 120 . . Thermal 386 | . 133 253 . . Explosive 524 | . 130 394 . . Electromagnetic . | . . . . . Impact . | . . . . . Slashing . | . . . . . Piercing . | . . . . . Highest Corruption . | . . . . . Average Corruption . | . . . . . Corruption Purged . | . . . . . Corruption Blocked . | . . . . . Overload Shots . | . . . . . Overflow Damage . | . . . . . Projectiles . | . . . . . Explosions . | . . . . . Melee . | . . . . . Knockbacks . | . . . . . Impact . | . . . . . Kinetic . | . . . . . Secondary . | . . . . . Self-Inflicted Damage . | . . . . . Shots . | . . . . . Rammed . | . . . . . Targets Rammed . | . . . . . Kicked . | . . . . . Crushed . | . . . . . Highest Temperature 500 | . 198 500 . . Average Temperature 118 | . 52 164 . . Received Heat Transfer 234 | . 117 117 . . Effects 9 | . . 9 . . Shutdowns 3 | . . 3 . . Energy Bleed 1 | . . 1 . . Interference 1 | . . 1 . . Damage (major) 4 | . . 4 . . Siege Activations . | . . . . . Robots Corrupted . | . . . . . Combat Hostiles . | . . . . . Parts Fried . | . . . . . Impact Corruptions . | . . . . . Robots Melted . | . . . . . Combat Hostiles . | . . . . . Parts Melted 3 | . 3 . . . Heat Transferred 999 | . 370 629 . . Parts Sabotaged . | . . . . . Parts Stolen . | . . . . . Parts Stripped . | . . . . . Power Chain Reactions . | . . . . . Alert | -11 -10 -10 -10 -8 ------- Run | Yrd Mat Min Sub Mat Peak Influence 205 | . 205 74 . . Initial 30 | . . 30 . . Average 45 | . 62 28 . . Maximum Alert Level 1 | . 1 . . . Low Security (%) 97 | 100 94 100 . . Level 1 2 | . 5 . . . Level 2 . | . . . . . Level 3 . | . . . . . Level 4 . | . . . . . Level 5 . | . . . . . High Security . | . . . . . Max Security . | . . . . . Squads Dispatched 2 | . 2 . . . Investigation 2 | . 2 . . . Extermination . | . . . . . Reinforcement . | . . . . . Assault . | . . . . . Garrison . | . . . . . Intercept . | . . . . . Searches Triggered . | . . . . . Construction Impeded . | . . . . . Haulers Reinforced . | . . . . . Active Scanning Responses . | . . . . . Cargo Convoy Interrupts . | . . . . . Stealth | -11 -10 -10 -10 -8 --------- Run | Yrd Mat Min Sub Mat Distress Signals 2 | . 2 . . . Communications Jammed . | . . . . . Distress Signals . | . . . . . Times Spotted 40 | . 19 21 . . Peak Tracking Total 11 | . 6 11 . . Tactical Retreats . | . . . . . Traps | -11 -10 -10 -10 -8 ------- Run | Yrd Mat Min Sub Mat Traps Triggered 3 | . 3 . . . Indirectly . | . . . . . Trap Hack Attempts . | . . . . . Triggered . | . . . . . Disarmed . | . . . . . Reprogrammed . | . . . . . Reused . | . . . . . Traps Extracted . | . . . . . Installed . | . . . . . Triggered . | . . . . . Machines | -11 -10 -10 -10 -8 ---------- Run | Yrd Mat Min Sub Mat Machines Disabled 2 | . 2 . . . Max in Single Turn 1 | . 1 . . . Machines Repaired . | . . . . . Machines Dismantled . | . . . . . Machines Sabotaged . | . . . . . Overloaded Fab Kills . | . . . . . Hacking | -11 -10 -10 -10 -8 --------- Run | Yrd Mat Min Sub Mat Machines Accessed 7 | . 6 1 . . Terminals 6 | . 5 1 . . Fabricators . | . . . . . Repair Stations 1 | . 1 . . . Recycling Units . | . . . . . Scanalyzers . | . . . . . Garrison Access . | . . . . . Total Hacks 20 | . 17 3 . . Successful 7 | . 5 2 . . Failed 13 | . 12 1 . . Catastrophic 2 | . 2 . . . Database Lockouts . | . . . . . Manual 4 | . 4 . . . Terminals 15 | . 12 3 . . Fabricators . | . . . . . Repair Stations 5 | . 5 . . . Recycling Units . | . . . . . Scanalyzers . | . . . . . Garrison Access . | . . . . . Terminal Hacks 3 | . 1 2 . . Record 2 | . . 2 . . Prototype ID Bank 1 | . 1 . . . Fabricator Hacks . | . . . . . Repair Station Hacks 4 | . 4 . . . Scan Component 2 | . 2 . . . Repair 2 | . 2 . . . Recycling Unit Hacks . | . . . . . Scanalyzer . | . . . . . Garrison Access Hacks . | . . . . . Unauthorized Hacks . | . . . . . Terminals . | . . . . . Fabricators . | . . . . . Repair Stations . | . . . . . Recycling Units . | . . . . . Scanalyzers . | . . . . . Garrison Access . | . . . . . Data Cores Recovered . | . . . . . Used . | . . . . . Hacking Detections 7 | . 6 1 . . Full Trace Events 1 | . 1 . . . Feedback Events . | . . . . . Feedback Blocked . | . . . . . Robot Schematics Acquired . | . . . . . Robots Built . | . . . . . Authchips . | . . . . . Time . | . . . . . Total Robot Build Rating . | . . . . . Part Schematics Acquired . | . . . . . Parts Built . | . . . . . Authchips . | . . . . . Time . | . . . . . Total Part Build Rating . | . . . . . Parts Repaired 2 | . 2 . . . Time 52 | . 52 . . . Parts Recycled . | . . . . . Recycled Matter . | . . . . . Retrieved Matter . | . . . . . Retrieved Components . | . . . . . Parts Scanalyzed . | . . . . . Part Schematics Acquired . | . . . . . Parts Damaged . | . . . . . Bothacking | -11 -10 -10 -10 -8 ------------ Run | Yrd Mat Min Sub Mat Used RIF Installer . | . . . . . Robots Hacked . | . . . . . Non-combat . | . . . . . Combat . | . . . . . Robot Hacks Applied . | . . . . . Relay Couplers Released . | . . . . . Fabnet Peak Effective % . | . . . . . Robots Rewired . | . . . . . Allies Hacked . | . . . . . Hacks Repelled . | . . . . . Allies | -11 -10 -10 -10 -8 -------- Run | Yrd Mat Min Sub Mat Total Allies 2 | . . 2 . . Largest Group 2 | . . 2 . . Highest-Rated Group 45 | . . 45 . . Highest-Rated Ally 31 | . . 31 . . Total Orders . | . . . . . Ally Attacks 8 | . . 8 . . Total Damage 104 | . . 104 . . Kills 1 | . . 1 . . Allies Corrupted . | . . . . . Allies Melted 1 | . . 1 . . Intel | -11 -10 -10 -10 -8 ------- Run | Yrd Mat Min Sub Mat Robot Analysis Total . | . . . . . Derelict Logs Recovered 1 | . . 1 . . Drone Launches . | . . . . . Drone Recoveries . | . . . . . Exploration | -11 -10 -10 -10 -8 ------------- Run | Yrd Mat Min Sub Mat Turns Passed 2733 | 27 1192 1094 420 . Spaces Moved 1233 | 39 609 410 175 . Core 39 | 39 . . . . Treads 1194 | . 609 410 175 . Legs . | . . . . . Wheels . | . . . . . Hover . | . . . . . Flight . | . . . . . Fastest Speed 50 | 50 160 160 240 . Average Speed 192 | 50 160 233 240 . Slowest Speed 240 | 50 160 240 240 . Overloaded Moves . | . . . . . Propulsion Burnouts . | . . . . . Robots Hopped . | . . . . . Cave-ins Triggered . | . . . . . Exploration Rate (%) 36 | 3 93 67 16 1 Regions Visited 4 Branch Regions 2 Pre-discovered Areas 1 | . . 1 . . Known Exits Taken . | . . . . . Unknown Exits Taken 4 | 1 1 1 1 . Scrap Searched 1 | . . 1 . . Spaces Dug . | . . . . . Terrain Destroyed 63 | . 19 44 . . Melee . | . . . . . Projectile 8 | . . 8 . . AOE 55 | . 19 36 . . Terrain Rammed . | . . . . . Walls Destroyed . | . . . . . Machines Disabled . | . . . . . Actions | -11 -10 -10 -10 -8 --------- Run | Yrd Mat Min Sub Mat Total 1500 | 45 771 508 176 . Wait 146 | . 84 62 . . Move 1229 | 38 608 409 174 . Hop . | . . . . . Pick Up 34 | 5 23 5 1 . Fast Attach 2 | 2 . . . . Attach 15 | . 11 3 1 . Detach . | . . . . . Swap 12 | . 9 3 . . Drop 11 | . 7 4 . . Fire 51 | . 29 22 . . Melee . | . . . . . Ram . | . . . . . Kick . | . . . . . Crush . | . . . . . Escape Stasis . | . . . . . Rewire . | . . . . . Trap . | . . . . . Miscellaneous . | . . . . . Route ------- -11/Scrapyard -10/Materials (discovered 4 exits: [*Mat x3] / *Min) -10/Mines (discovered 2 exits: [*Mat] / [*Sub]) -10/Subcaves -8/Materials History --------- Turn | Location | Event 16 | -11/Scrapyard | Discovered new exit (range 15) 28 | -11/Scrapyard | Entered Materials 318 | -10/Materials | Build established: Mutant 428 | -10/Materials | Repaired Lgt. Treads 455 | -10/Materials | Repaired Lgt. Treads 561 | -10/Materials | Discovered new exit (range 4) 631 | -10/Materials | Discovered new exit (range 15) 838 | -10/Materials | Discovered new exit (range 15) 988 | -10/Materials | Discovered new exit (range 16) 1220 | -10/Materials | Entered Mines 1221 | -10/Mines | Assembled infested the area 1226 | -10/Mines | Assisted by a Guerilla fighting off Assembled 1237 | -10/Mines | Core integrity fell below 50% 1282 | -10/Mines | Lost 3 allies 1285 | -10/Mines | Destroyed 11 combat bots 1341 | -10/Mines | Lost 4 parts (1p1n1u1w) 1424 | -10/Mines | Discovered new exit (range 11) 1523 | -10/Mines | Learned location of Storage (-8) 1831 | -10/Mines | Core integrity fell below 20% 1935 | -10/Mines | Discovered new exit (range 10) 2203 | -10/Mines | Learned Materials garrison access intel 2314 | -10/Mines | Entered Subcaves 2705 | -10/Subcaves | Discovered new exit (range 13) 2709 | -10/Subcaves | Shifting Twisted Machinery released Sub. Monowheel 2734 | -10/Subcaves | Entered Materials 2734 | -8/Materials | Evolved 4 slots: Utility x4 2734 | -8/Materials | Self-destructed Last Messages --------------- them an interesting study in robotic evolution. I did unfortunately have to displace some of my favorite Derelict populations during the construction of [Complex 0b10]. Acquired derelict log, extracted data. Data stored: Materials garrison access intel. LOCATION=UNKNOWN AMBIENT_HEAT=-10 GOAL=ESCAPE Subatomizers dissect the Sub. Optics. Acquired Sub. Machine Gun. Acquired 10 matter. Subatomizers dissect the Sub. Optics. EXIT=FOUND Sub. Monowheel falls loose from the Twisted Machinery. PARAMETERS=UTILITY+4 LOCATION=UNKNOWN GOAL=ESCAPE Map ----- +----------------------------------------------------+ | ??????????????????????????????????????? | | ??????????????????????????????????????? | | ??????????????????????????????????????? | | ??????????????????????????????????????? | | ??????????????????????????????????????? | | ??????????????????????????????????????? | | ??????????????????????????????????????? | | ??????????????????????????????????????? | | ??????????????????????????????????????? | | ??????????????????????????????????????? | | ??????????????????????????????????????? | | ??????????????????????????????????????? | | ??????????????????????????????????????? | | ??????????????????????????????????????? | | ??????????????????????????????????????? | | ??????????????????????????????????????? | | ??????????????????????????????????????? | | ??????????????????????????????????????? | | ??????????????????????????????????????? | | ??????????????????????????????????????? | | ??????????????????????????????????????? | | ??????????????????????????????????????? | | ??????????????????????????????????????? | | ????????????# #######+####??????????? | | ?????????? #??????????? | | ?????????? @ #??????????? | | ?????????? #??????????? | | ?????????????###+######+####??????????? | | ??????????????????????????????????????? | | ??????????????????????????????????????? | | ??????????????????????????????????????? | | ??????????????????????????????????????? | | ??????????????????????????????????????? | | ??????????????????????????????????????? | | ??????????????????????????????????????? | | ??????????????????????????????????????? | | ??????????????????????????????????????? | | ??????????????????????????????????????? | | ??????????????????????????????????????? | | ??????????????????????????????????????? | | ??????????????????????????????????????? | | ??????????????????????????????????????? | | ??????????????????????????????????????? | | ??????????????????????????????????????? | | ??????????????????????????????????????? | | ??????????????????????????????????????? | | ??????????????????????????????????????? | | ??????????????????????????????????????? | | ??????????????????????????????????????? | | ??????????????????????????????????????? | +----------------------------------------------------+ Best States ------------- Heat Dissipation 25 Energy Generation 15 Energy Capacity 250 Matter Stores 300 Matter Capacity 300 Sight Range 16 Robot Scan Range 14 Terrain Scan Density 10 Armor Coverage 150 Evasion (%) 50 Recoil Reduction 2 Item Schematics ----------------- None Robot Schematics ------------------ None Fabricated ------------ Nothing Alien Tech Used ----------------- None Achievements -------------- None Challenges ------------ None Game ------ Seed SpikedSigixCutter Manual? 0 Play Time 00:11:45 Cumulative 31.2 hours Start 2024.07.13 @ 19:38:49 End 2024.07.13 @ 19:50:32 Sessions 1 Manual Loads 0 Difficulty Rogue Special Mode None Game No. 71 Rogue 70 Adventurer 1 Explorer 0 Win Type - Total 0 Types 0/0/0/0/0/0/0/0/0 Lore% 16 Gallery% 30 Achievement% 26 Wizard Run 0 Options --------- Layout 1 ASCII 0 Keyboard 0 Movement Mouse Keybinds 0 Fullscreen 2 Font 24/Terminus Map View 50x35 Zoom Use 0% Tactical HUD 0 Map Filters NONE Filters NONE Steam 1 RUN: b4fbbc04-8b11-4c5c-9a02-b8fdd749e10d